bitfinex-derivatives/quotes_BTCF0:USTF0_20250729
["timestamp","ask_amount","ask_price","bid_price","bid_amount"]
[1753756035884,0.3399213,117920.0,117910.0,0.1696226]
[1753756036080,0.362716,117920.0,117910.0,0.3231826]
[1753756036488,0.348711,117920.0,117910.0,0.3231826]
[1753756037187,0.848711,117920.0,117910.0,0.65737838]
[1753756037488,0.848711,117920.0,117910.0,0.3231826]
[1753756037992,0.868561,117920.0,117910.0,0.2938226]
[1753756038188,0.4109934,117910.0,117900.0,0.01904]
[1753756038492,0.4109934,117910.0,117900.0,0.964987]
[1753756038493,0.78759778,117910.0,117900.0,0.964987]
[1753756038688,0.453402,117910.0,117900.0,0.964987]
[1753756039796,0.453402,117910.0,117900.0,0.964947]
[1753756040283,0.455402,117910.0,117900.0,0.964947]
[1753756040486,0.455402,117910.0,117900.0,0.293837]
[1753756040987,0.2446448,117910.0,117900.0,0.65739278]
[1753756041196,0.0346,117910.0,117900.0,1.37011278]
[1753756042085,0.2042226,117910.0,117900.0,1.37011278]
[1753756042784,0.2042226,117910.0,117900.0,1.3209739]
[1753756042985,0.0346,117910.0,117900.0,1.3209739]
[1753756043186,0.004,117910.0,117900.0,1.3209739]
[1753756043690,0.004,117910.0,117900.0,1.3208539]
[1753756043691,0.2819125,117910.0,117900.0,1.3208539]
[1753756043987,0.3301625,117910.0,117900.0,1.035757]
[1753756044295,0.6152194,117910.0,117900.0,1.006397]
[1753756044782,0.2819125,117910.0,117900.0,1.3208139]
[1753756044983,0.2819125,117910.0,117900.0,1.035757]
[1753756045183,0.6152194,117910.0,117900.0,0.973277]
[1753756045491,0.6152194,117910.0,117900.0,1.006357]
[1753756045886,0.3301625,117910.0,117900.0,1.006357]
[1753756046390,0.3301625,117910.0,117900.0,0.293837]
[1753756047392,0.8301625,117910.0,117900.0,0.293837]
[1753756051887,0.8301625,117910.0,117900.0,0.323197]
[1753756053495,0.8281625,117910.0,117900.0,0.323197]
[1753756053697,0.8281625,117910.0,117900.0,0.326197]
[1753756054589,0.8281625,117910.0,117900.0,0.325197]
[1753756054795,0.8261625,117910.0,117900.0,0.6593366]
[1753756054995,0.8261625,117910.0,117900.0,0.330197]
[1753756055494,0.8261625,117910.0,117900.0,0.39115459]
[1753756055697,0.8261625,117910.0,117900.0,0.39015459]
[1753756057892,0.8261625,117910.0,117900.0,0.36079459]
[1753756058698,0.8261625,117910.0,117900.0,0.39015459]
[1753756064507,0.8261626,117910.0,117900.0,0.39015459]
[1753756064698,0.8261626,117910.0,117900.0,1.10191459]
[1753756065298,0.8261626,117910.0,117900.0,1.040957]
[1753756065700,0.8261626,117910.0,117900.0,1.038957]
[1753756065903,0.8261626,117910.0,117900.0,1.040957]
[1753756066203,0.8261626,117910.0,117900.0,1.3750966]
[1753756068092,0.65654,117910.0,117900.0,1.3750966]
[1753756068292,0.8261627,117910.0,117900.0,1.3750966]
[1753756068803,0.8261627,117910.0,117900.0,1.32603369]
[1753756069202,0.65654,117910.0,117900.0,1.32603369]
[1753756069698,0.8261626,117910.0,117900.0,1.32603369]
[1753756070100,0.5,117910.0,117900.0,1.32603369]
[1753756070298,0.52965,117910.0,117900.0,1.32603369]
[1753756070498,0.02965,117910.0,117900.0,1.32603369]
[1753756070896,0.2739226,117910.0,117900.0,0.61427369]
[1753756071101,0.3206126,117910.0,117900.0,1.38663128]
[1753756071606,0.3206126,117910.0,117900.0,1.38463128]
[1753756071801,0.15099,117910.0,117900.0,1.38663128]
[1753756073605,0.1043,117910.0,117900.0,1.38663128]
[1753756073809,0.1043,117920.0,117910.0,0.3226626]
[1753756074008,0.1043,117920.0,117910.0,0.60773929]
[1753756074312,0.15099,117920.0,117910.0,0.60773929]
[1753756074809,0.3205982,117920.0,117910.0,0.60773929]
[1753756075000,0.8205982,117920.0,117910.0,0.60773929]
[1753756075200,0.65099,117920.0,117910.0,0.60773929]
[1753756075705,0.6043,117920.0,117910.0,0.3226626]
[1753756075900,0.63164,117920.0,117910.0,0.60773929]
[1753756076101,0.65099,117920.0,117910.0,0.60773929]
[1753756076513,0.65099,117920.0,117910.0,0.68405939]
[1753756076707,0.62365,117920.0,117910.0,0.3989827]
[1753756077017,0.57039,117920.0,117910.0,0.68705939]
[1753756077500,0.5,117920.0,117910.0,0.68805939]
[1753756078403,0.2918853,117920.0,117910.0,1.46095762]
[1753756078607,0.02965,117940.0,117930.0,0.2119901]
[1753756078904,0.02965,117940.0,117930.0,1.31151126]
[1753756079107,0.02965,117940.0,117930.0,1.35390966]
[1753756080207,0.323362,117960.0,117950.0,0.1695651]
[1753756080507,0.26381,117960.0,117950.0,1.16548179]
[1753756080895,0.23365,117960.0,117950.0,1.16548179]
[1753756081100,0.76381,117960.0,117950.0,1.16548179]
[1753756081914,0.65381,117960.0,117950.0,1.16548179]
[1753756082215,0.65581,117960.0,117950.0,1.16548179]
[1753756082402,0.65781,117960.0,117950.0,1.17380824]
[1753756082602,0.15781,117960.0,117950.0,1.17380824]
[1753756083302,0.3273607,117960.0,117950.0,1.17380824]
[1753756083499,0.3273607,117960.0,117950.0,0.17789155]
[1753756083696,0.3273607,117960.0,117950.0,0.88857155]
[1753756083697,0.61043739,117960.0,117950.0,0.88857155]
[1753756083902,0.61143739,117960.0,117950.0,0.88857155]
[1753756084509,0.3263607,117960.0,117950.0,0.88857155]
[1753756084909,0.3263607,117960.0,117950.0,0.94951261]
[1753756085307,0.3263607,117960.0,117950.0,0.88857155]
[1753756086712,0.3263607,117960.0,117950.0,0.94951261]
[1753756087808,0.61143739,117960.0,117940.0,0.14572556]
[1753756088013,0.60845179,117950.0,117940.0,1.02573116]
[1753756088213,0.3233751,117950.0,117940.0,1.02573116]
[1753756088515,0.60845179,117950.0,117940.0,1.02573116]
[1753756088714,0.60845179,117950.0,117940.0,0.31529116]
[1753756089214,0.60845179,117950.0,117940.0,0.2543501]
[1753756090113,1.10845179,117950.0,117940.0,0.2543501]
[1753756090809,0.8233751,117950.0,117940.0,0.2543501]
[1753756091113,0.65381,117950.0,117940.0,0.60036785]
[1753756091319,0.52965,117950.0,117940.0,0.60036785]
[1753756091704,0.02965,117950.0,117940.0,0.55864474]
[1753756091910,0.03065,117950.0,117940.0,0.55864474]
[1753756092411,0.2386651,117950.0,117940.0,0.61940137]
[1753756092616,0.60945179,117950.0,117940.0,0.94137535]
[1753756093117,0.3243751,117950.0,117940.0,0.94137535]
[1753756093316,0.60945179,117950.0,117940.0,0.95025535]
[1753756093919,1.10945179,117950.0,117940.0,0.96337535]
[1753756094821,0.8243751,117950.0,117940.0,0.96337535]
[1753756095820,0.8243751,117950.0,117940.0,0.95681535]
[1753756096020,0.8243751,117950.0,117940.0,0.95025535]
[1753756096221,0.8243751,117950.0,117940.0,0.24005535]
[1753756100722,0.8243751,117950.0,117940.0,0.26081535]
[1753756104828,1.15826259,117950.0,117940.0,0.1695656]
[1753756105325,1.15826259,117950.0,117940.0,0.23032223]
[1753756107923,1.15826259,117950.0,117940.0,0.1695656]
[1753756109632,1.15826259,117950.0,117940.0,0.23057409]
[1753756110136,1.15826259,117950.0,117940.0,0.1695656]
[1753756110324,1.15826259,117950.0,117940.0,0.2305753]
[1753756110933,0.8243751,117950.0,117940.0,0.2305753]
[1753756111232,1.15826259,117950.0,117940.0,0.2305753]
[1753756112635,0.8243751,117950.0,117940.0,0.2305753]
[1753756112825,1.15826259,117950.0,117940.0,0.2305753]
[1753756113330,0.8243751,117950.0,117940.0,0.2305753]
[1753756114430,1.15826259,117950.0,117940.0,0.2305753]
[1753756115526,1.15826259,117950.0,117940.0,0.1695656]
[1753756116836,1.10931448,117950.0,117940.0,0.1992056]
[1753756119541,1.10931448,117950.0,117940.0,0.1695656]
[1753756119837,1.10931448,117950.0,117940.0,0.2305753]
[1753756121834,0.8243751,117950.0,117940.0,0.2305753]
[1753756122138,1.10931448,117950.0,117940.0,0.2353553]
[1753756123438,1.10931448,117950.0,117940.0,0.2383253]
[1753756125534,1.10931448,117950.0,117940.0,0.25065394]
[1753756126435,1.10931448,117950.0,117940.0,0.24587394]
[1753756129537,1.10931448,117950.0,117940.0,0.1695656]
[1753756134044,0.8243751,117950.0,117940.0,0.47573498]
[1753756134244,0.8243751,117950.0,117940.0,0.1907956]
[1753756136847,0.65481,117950.0,117940.0,0.47573498]
[1753756137344,0.15481,117950.0,117940.0,0.47573498]
[1753756137646,0.15791,117950.0,117940.0,0.47867498]
[1753756137843,0.15791,117950.0,117940.0,0.55498332]
[1753756138049,0.0927,117950.0,117940.0,0.55204332]
[1753756138240,0.12925,117950.0,117940.0,0.55498332]
[1753756138548,0.15987,117950.0,117940.0,1.26374332]
[1753756141653,0.03065,117950.0,117940.0,1.26374332]
[1753756141854,0.00103923,117950.0,117940.0,1.18743498]
[1753756142048,0.00103923,117950.0,117940.0,1.29406424]
[1753756142351,0.03758923,117950.0,117940.0,1.29406424]
[1753756142652,0.11127923,117950.0,117940.0,1.29406424]
[1753756142945,0.13108923,117950.0,117940.0,1.29406424]
[1753756143355,0.13108923,117950.0,117940.0,1.00912486]
[1753756143651,0.13108923,117950.0,117940.0,1.29406424]
[1753756144353,0.13108923,117950.0,117940.0,1.31265007]
[1753756145454,0.13108923,117950.0,117940.0,1.38888835]
[1753756145646,0.13108923,117950.0,117940.0,1.28225909]
[1753756149148,0.10046923,117950.0,117940.0,1.28225909]
[1753756149455,0.13108923,117950.0,117940.0,1.28225909]
[1753756149651,0.13108923,117950.0,117940.0,1.20602081]
[1753756149848,0.001,117950.0,117940.0,1.20602081]
[1753756150052,0.001,117950.0,117940.0,1.28225909]
[1753756150252,0.001,117950.0,117940.0,1.20602081]
[1753756151255,0.09493,117960.0,117950.0,0.1992351]
[1753756151456,0.1621,117960.0,117950.0,0.58337856]
[1753756152561,0.13148,117960.0,117950.0,0.58337856]
[1753756152856,0.1621,117960.0,117950.0,0.58337856]
[1753756154160,0.1621,117960.0,117950.0,0.58737856]
[1753756154948,0.1621,117960.0,117950.0,0.58937856]
[1753756155354,0.1621,117960.0,117950.0,0.58537856]
[1753756155560,0.1621,117960.0,117950.0,0.60466276]
[1753756156367,0.1621,117960.0,117950.0,0.2434851]
[1753756156554,0.1621,117960.0,117950.0,0.31972338]
[1753756161161,0.1621,117960.0,117950.0,0.60466276]
[1753756161661,0.1621,117960.0,117950.0,0.60266276]
[1753756161861,0.1621,117960.0,117950.0,0.60466276]
[1753756162064,0.1621,117960.0,117950.0,0.31972338]
[1753756163265,0.1621,117960.0,117950.0,0.60466276]
[1753756166773,0.1621,117960.0,117950.0,0.52842448]
[1753756167073,0.1621,117960.0,117950.0,0.60468001]
[1753756167367,0.1621,117960.0,117950.0,0.60068001]
[1753756167575,0.1621,117960.0,117950.0,0.60468001]
[1753756168365,0.1621,117960.0,117950.0,0.52842448]
[1753756171473,0.13148,117960.0,117950.0,0.52842448]
[1753756172076,0.16258,117960.0,117950.0,0.52842448]
[1753756174569,0.2544271,117970.0,117960.0,0.2340307]
[1753756174868,0.4194271,117970.0,117960.0,0.59530627]
[1753756175169,0.24988,117970.0,117960.0,0.59530627]
[1753756175367,0.4194163,117970.0,117960.0,0.59530627]
[1753756175565,0.4194163,117970.0,117960.0,0.31036689]
[1753756176372,0.4194163,117970.0,117960.0,0.31136689]
[1753756177977,0.4194163,117970.0,117960.0,0.31436689]
[1753756178675,0.4194163,117970.0,117960.0,0.32302574]
[1753756179077,0.24988,117970.0,117960.0,0.32302574]
[1753756179277,0.24988,117970.0,117960.0,0.24668955]
[1753756179482,0.11908,117970.0,117960.0,1.23874893]
[1753756179782,0.15464,117970.0,117960.0,1.31508512]
[1753756180080,0.24988,117970.0,117960.0,1.31508512]
[1753756180677,0.15988,117970.0,117960.0,1.31508512]
[1753756181879,0.11598,117980.0,117970.0,0.2340163]
[1753756182176,0.27988,117980.0,117970.0,0.59529187]
[1753756182875,0.19233,117980.0,117970.0,0.59529187]
[1753756183074,0.27988,117980.0,117970.0,0.59529187]
[1753756183377,0.77988,117980.0,117970.0,0.59629187]
[1753756184980,0.27988,117980.0,117970.0,0.59629187]
[1753756185583,0.27988,117980.0,117970.0,0.59621653]
[1753756185785,0.15988,117980.0,117970.0,0.59621653]
[1753756186077,0.15988,117980.0,117970.0,0.51995568]
[1753756186482,0.15988,117980.0,117970.0,0.59621653]
[1753756186978,1.28841328,118000.0,117970.0,0.59621653]
[1753756186979,0.1559,118000.0,117990.0,0.1695076]
[1753756187179,0.98266,118000.0,117990.0,0.5717995]
[1753756187483,0.21064,118000.0,117990.0,0.5717995]
[1753756187681,0.2759,118000.0,117990.0,0.51080698]
[1753756188183,0.1559,118000.0,117990.0,0.57178272]
[1753756188375,0.1559,118000.0,117990.0,0.51080698]
[1753756189475,0.325379,118010.0,118000.0,0.2258533]
[1753756189782,0.435379,118010.0,118000.0,0.28682625]
[1753756190287,0.435379,118010.0,118000.0,0.29528055]
[1753756190884,0.438379,118010.0,118000.0,0.29528055]
[1753756191179,0.440379,118010.0,118000.0,0.29528055]
[1753756193882,0.440379,118010.0,118000.0,0.25677625]
[1753756195474,0.440379,118010.0,118000.0,0.1958033]
[1753756195681,0.72531838,118010.0,118000.0,0.1694933]
[1753756196382,1.22531838,118010.0,118000.0,0.1694933]
[1753756199081,1.22531838,118010.0,118000.0,0.1906233]
[1753756199294,0.940379,118010.0,118000.0,0.1925833]
[1753756199483,0.940379,118010.0,118000.0,0.1939733]
[1753756199684,0.7709,118010.0,118000.0,0.47891268]
[1753756201085,0.9403789,118010.0,118000.0,0.47891268]
[1753756202395,0.9403789,118010.0,118000.0,0.1906233]
[1753756202588,0.3253932,118000.0,117990.0,0.2542477]
[1753756202787,0.61033258,118000.0,117990.0,0.2542477]
[1753756203092,1.31617258,118000.0,117990.0,0.2542477]
[1753756204394,1.81617258,118000.0,117990.0,0.2542477]
[1753756204589,1.81817258,118000.0,117990.0,0.2542477]
[1753756204782,1.81917258,118000.0,117990.0,0.2542477]
[1753756205594,1.81917258,118000.0,117990.0,0.31522065]
[1753756210094,1.83917258,118000.0,117990.0,0.31522065]
[1753756210291,2.29360796,118000.0,117990.0,0.06097295]
[1753756210484,0.325408,117990.0,117980.0,0.28815215]
[1753756210683,0.61034738,117990.0,117980.0,0.33053255]
[1753756211292,0.71510658,117990.0,117980.0,0.1695224]
[1753756211498,0.75748658,117990.0,117980.0,0.1695224]
[1753756211892,0.3254224,117980.0,117970.0,0.33055885]
[1753756212093,1.31576178,117980.0,117970.0,0.254298]
[1753756213496,1.31576178,117980.0,117970.0,0.255298]
[1753756213997,1.0308224,117980.0,117970.0,0.255298]
[1753756214193,1.81576178,117980.0,117970.0,0.255298]
[1753756214585,1.81576178,117980.0,117970.0,0.1705304]
[1753756214586,1.83576178,117980.0,117970.0,0.1705304]
[1753756216990,2.00528978,117980.0,117970.0,0.001]
[1753756217185,0.3285767,117970.0,117960.0,0.07626085]
[1753756217392,0.61351608,117970.0,117960.0,0.24581195]
[1753756218097,0.61351608,117970.0,117960.0,0.1695511]
[1753756218492,1.11351608,117970.0,117960.0,0.1695511]
[1753756218892,0.8285767,117970.0,117960.0,0.1695511]
[1753756219087,1.11351608,117970.0,117960.0,0.1695511]
[1753756219302,0.8285767,117970.0,117960.0,0.1695511]
[1753756219596,1.11351608,117970.0,117960.0,0.1695511]
[1753756220100,1.11351608,117970.0,117960.0,0.1725511]
[1753756220298,1.11351608,117970.0,117960.0,0.003]
[1753756220495,1.23351608,117970.0,117960.0,0.06388186]
[1753756220695,1.93855608,117970.0,117960.0,0.23443296]
[1753756220897,1.93855608,117970.0,117960.0,0.1705511]
[1753756221097,1.93855608,117970.0,117960.0,0.1735511]
[1753756221392,1.93855608,117970.0,117960.0,0.004]
[1753756221597,1.93859608,117970.0,117960.0,0.23443286]
[1753756222002,1.93859608,117970.0,117960.0,0.06388186]
[1753756222198,1.93859608,117970.0,117960.0,0.003]
[1753756222500,1.94724617,117970.0,117960.0,0.003]
[1753756223693,0.2616511,117960.0,117950.0,0.06088186]
[1753756223901,1.00846986,117960.0,117950.0,0.23044736]
[1753756224096,1.00846986,117960.0,117950.0,0.1695655]
[1753756224297,0.2673355,117950.0,117940.0,0.31523896]
[1753756224488,1.31850488,117950.0,117940.0,0.31896896]
[1753756225400,1.31850488,117950.0,117940.0,0.2580871]
[1753756225600,1.31850488,117950.0,117940.0,0.31896896]
[1753756225902,1.31850488,117950.0,117940.0,0.31623896]
[1753756226299,1.31850488,117950.0,117940.0,0.2553571]
[1753756226797,1.31850488,117950.0,117940.0,0.2129622]
[1753756227395,1.31850488,117950.0,117940.0,0.1705686]
[1753756227797,1.43850488,117950.0,117940.0,0.001]
[1753756228098,1.43850488,117950.0,117920.0,0.31901846]
[1753756228099,0.3286343,117930.0,117920.0,0.31901846]
[1753756228300,1.31841368,117930.0,117920.0,0.31528846]
[1753756228499,1.31841368,117930.0,117920.0,0.2120049]
[1753756229001,0.3286487,117920.0,117910.0,0.2737131]
[1753756229196,0.61358808,117920.0,117910.0,0.2313076]
[1753756229399,0.61358808,117920.0,117910.0,0.2120176]
[1753756230605,0.61358808,117920.0,117910.0,0.2356776]
[1753756232009,1.11358808,117920.0,117910.0,0.2356776]
[1753756232806,1.11358808,117920.0,117910.0,0.2120176]
[1753756233205,1.39852746,117920.0,117910.0,0.2120176]
[1753756233609,1.11358808,117920.0,117910.0,0.2120176]
[1753756235010,1.11358808,117920.0,117910.0,0.2130176]
[1753756235806,1.11358808,117920.0,117910.0,0.2177476]
[1753756238117,1.11358808,117920.0,117910.0,0.2140176]
[1753756239316,0.8286487,117920.0,117910.0,0.2140176]
[1753756239514,1.11358808,117920.0,117910.0,0.2140176]
[1753756240009,1.11358808,117920.0,117910.0,0.2177476]
[1753756240315,1.11358808,117920.0,117910.0,0.2167476]
[1753756240613,1.11358808,117920.0,117910.0,0.2120176]
[1753756244319,1.81806808,117920.0,117910.0,0.2120176]
[1753756244514,0.94397938,117920.0,117910.0,0.2145576]
[1753756244817,1.25256,117920.0,117910.0,0.55133698]
[1753756245421,1.4868286,117920.0,117910.0,0.55133698]
[1753756245619,1.0288586,117920.0,117910.0,0.55133698]
[1753756245919,0.85925,117920.0,117910.0,0.55133698]
[1753756248922,0.85925,117920.0,117910.0,0.55233698]
[1753756249318,0.85925,117920.0,117910.0,0.55333698]
[1753756251118,1.0288587,117920.0,117910.0,0.55333698]
[1753756251308,0.85925,117920.0,117910.0,0.2683976]
[1753756251620,0.65131388,117930.0,117920.0,0.2239886]
[1753756251816,1.35547388,117930.0,117920.0,0.2239886]
[1753756252322,1.35547388,117930.0,117920.0,0.1961986]
[1753756252921,1.35539388,117930.0,117920.0,0.1961986]
[1753756253116,1.85539388,117930.0,117920.0,0.1961986]
[1753756254125,1.15131388,117930.0,117920.0,0.1961986]
[1753756254318,1.85531388,117930.0,117920.0,0.1961986]
[1753756254523,1.15131388,117930.0,117920.0,0.1961986]
[1753756254821,1.85531388,117930.0,117920.0,0.1961986]
[1753756256324,1.85531388,117930.0,117920.0,0.1921386]
[1753756256918,1.85531388,117930.0,117920.0,0.1696086]
[1753756257326,1.85531388,117930.0,117910.0,0.1272144]
[1753756257327,0.3239786,117920.0,117910.0,0.2544181]
[1753756257520,0.60891798,117920.0,117910.0,0.2120126]
[1753756259113,0.60891798,117920.0,117910.0,0.2140126]
[1753756259414,1.31271798,117920.0,117910.0,0.2340026]
[1753756259616,1.81271798,117920.0,117910.0,0.2365426]
[1753756259816,1.81271798,117920.0,117910.0,0.2355426]
[1753756260219,0.65437,117920.0,117910.0,0.2377826]
[1753756260430,0.52878,117920.0,117910.0,0.54951198]
[1753756260619,0.52878,117920.0,117910.0,0.62577283]
[1753756260816,0.5,117920.0,117910.0,0.62577283]
[1753756261016,0.15437,117930.0,117920.0,0.1925387]
[1753756261216,0.15437,117930.0,117920.0,0.50710808]
[1753756262625,0.15437,117930.0,117920.0,0.2221687]
[1753756262926,0.15437,117930.0,117920.0,0.1943787]
[1753756262927,0.3239642,117930.0,117920.0,0.1943787]
[1753756263327,0.60890358,117930.0,117920.0,0.1696087]
[1753756263729,0.60890358,117930.0,117920.0,0.1706087]
[1753756263926,1.10890358,117930.0,117920.0,0.1716087]
[1753756264524,0.93930938,117930.0,117920.0,0.1716087]
[1753756264724,0.93930938,117930.0,117920.0,0.1934387]
[1753756265629,0.65437,117930.0,117920.0,0.1934387]
[1753756265929,0.65437,117930.0,117920.0,0.1914387]
[1753756266128,0.65437,117930.0,117920.0,0.1963787]
[1753756266330,1.35789,117930.0,117920.0,0.50910808]
[1753756266628,0.65437,117930.0,117920.0,0.50910808]
[1753756266829,0.15437,117930.0,117920.0,0.50910808]
[1753756268329,0.15437,117930.0,117920.0,0.2241687]
[1753756270030,0.3239643,117930.0,117920.0,0.2241687]
[1753756271028,0.60890368,117930.0,117920.0,0.1716087]
[1753756274135,1.10890368,117930.0,117920.0,0.1716087]
[1753756275228,0.62319,117930.0,117920.0,0.50647808]
[1753756275435,0.5,117930.0,117920.0,0.50647808]
[1753756275740,0.02816,117930.0,117920.0,0.50647808]
[1753756275931,0.06164,117930.0,117920.0,0.50647808]
[1753756276235,0.13099,117930.0,117920.0,0.50647808]
[1753756276730,1.11523848,117950.0,117940.0,0.1695798]
[1753756276731,0.14947,117950.0,117940.0,0.1695798]
[1753756276935,0.85251,117950.0,117940.0,0.58072006]
[1753756277341,0.14947,117950.0,117940.0,0.58072006]
[1753756277728,1.5558571,117970.0,117960.0,0.1695511]
[1753756277938,2.2151967,117970.0,117960.0,0.47415048]
[1753756278139,0.93247,117970.0,117960.0,0.47625048]
[1753756278639,0.16809,117970.0,117960.0,0.58069136]
[1753756278835,0.85247,117980.0,117970.0,0.2194667]
[1753756279142,0.24947,117980.0,117970.0,0.29573758]
[1753756279733,0.4189923,117980.0,117970.0,0.2194667]
[1753756281036,0.4189923,117980.0,117970.0,0.1695367]
[1753756281534,0.83740545,117980.0,117970.0,0.002]
[1753756281835,0.87978905,117980.0,117970.0,0.002]
[1753756282240,0.3190068,117970.0,117960.0,0.2543138]
[1753756282441,1.35541355,117970.0,117960.0,0.2543138]
[1753756282639,1.0217668,117970.0,117960.0,0.2543138]
[1753756282840,1.35541355,117970.0,117960.0,0.2543138]
[1753756283142,1.85541355,117970.0,117960.0,0.2543138]
[1753756283541,1.5217668,117970.0,117960.0,0.2543138]
[1753756284043,1.5197668,117970.0,117960.0,0.2543138]
[1753756284340,0.64947,117970.0,117960.0,0.2726638]
[1753756284530,1.20264,117970.0,117960.0,0.61492055]
[1753756284735,1.20264,117970.0,117960.0,0.64309055]
[1753756284736,0.58053,117970.0,117960.0,0.64309055]
[1753756284931,0.60843,117970.0,117960.0,0.64309055]
[1753756285137,0.5,117970.0,117960.0,0.64309055]
[1753756285334,0.73076,117980.0,117970.0,0.2246667]
[1753756285642,0.81103,117980.0,117970.0,0.55831345]
[1753756285944,0.14947,117980.0,117970.0,0.55831345]
[1753756286837,0.14947,117980.0,117970.0,0.2246667]
[1753756287044,0.14947,117980.0,117970.0,0.55831345]
[1753756287744,0.15047,117980.0,117970.0,0.55831345]
[1753756287940,0.15047,117980.0,117970.0,0.2246667]
[1753756288537,0.08909,117980.0,117970.0,0.2246667]
[1753756288739,0.12257,117980.0,117970.0,0.2246667]
[1753756289043,0.15047,117980.0,117970.0,0.2246667]
[1753756289231,0.15047,117980.0,117970.0,0.2256667]
[1753756289431,0.15047,117980.0,117970.0,0.55931345]
[1753756291546,0.15047,117980.0,117970.0,0.56031345]
[1753756292638,0.001,117980.0,117970.0,0.56031345]
[1753756292837,0.02816,117980.0,117970.0,0.56131345]
[1753756293242,0.14947,117990.0,117980.0,0.2246524]
[1753756294451,0.318978,117990.0,117980.0,0.2246524]
[1753756294752,0.319978,117990.0,117980.0,0.2256524]
[1753756298956,0.319978,117990.0,117980.0,0.1974824]
[1753756300043,0.65362475,117990.0,117980.0,0.1921824]
[1753756301057,0.319978,117990.0,117980.0,0.1921824]
[1753756301359,0.319978,117990.0,117980.0,0.1888724]
[1753756301751,0.15047,117990.0,117980.0,0.2256524]
[1753756301951,0.15047,117990.0,117980.0,0.55929915]
[1753756302254,0.3189675,118000.0,117990.0,0.193158]
[1753756302554,0.3189675,118000.0,117990.0,0.224638]
[1753756302555,0.3613409,118000.0,117990.0,0.224638]
[1753756302958,0.3613409,118000.0,117990.0,0.196468]
[1753756303148,0.3613409,118000.0,117990.0,0.169508]
[1753756303351,0.69498765,118000.0,117990.0,0.169508]
[1753756303853,0.69698765,118000.0,117990.0,0.169508]
[1753756312349,0.65461425,118000.0,117990.0,0.169508]
[1753756312554,0.3209637,118000.0,117990.0,0.192068]
[1753756312753,0.85283,118000.0,117990.0,0.197248]
[1753756313059,1.0223237,118000.0,117990.0,0.197248]
[1753756313655,0.15147,118000.0,117990.0,0.223888]
[1753756313857,0.14911,118000.0,117990.0,0.55753475]
[1753756314162,0.09009,118000.0,117990.0,0.56597712]
[1753756314361,0.07161,118000.0,117990.0,0.56597712]
[1753756315362,0.13063,118000.0,117990.0,0.56597712]
[1753756315554,0.002,118000.0,117990.0,0.56597712]
[1753756315755,0.02956,118000.0,117990.0,0.56597712]
[1753756316761,0.02956,118000.0,117990.0,0.58449178]
[1753756317463,0.002,118000.0,117990.0,0.58449178]
[1753756317767,0.002,118000.0,117990.0,1.28561178]
[1753756320154,0.002,118000.0,117990.0,1.28661178]
[1753756320762,0.08658,118010.0,118000.0,0.2238736]
[1753756320954,0.08658,118010.0,118000.0,0.5084391]
[1753756321355,0.9749948,118030.0,118020.0,0.1972049]
[1753756321554,1.0849948,118030.0,118020.0,0.1972049]
[1753756321750,0.11,118030.0,118020.0,0.4817704]
[1753756321956,0.11,118030.0,118020.0,0.5084104]
[1753756321957,0.14875,118030.0,118020.0,0.5084104]
[1753756322860,0.14875,118030.0,118020.0,0.2238449]
[1753756324358,0.09173,118030.0,118020.0,0.55722829]
[1753756324557,0.07213,118030.0,118020.0,0.55722829]
[1753756325362,0.07613,118030.0,118020.0,0.55722829]
[1753756326358,0.13515,118030.0,118020.0,0.55722829]
[1753756326558,0.15475,118030.0,118020.0,0.55722829]
[1753756327968,0.15475,118030.0,118020.0,1.25778829]
[1753756334172,0.15475,118030.0,118020.0,1.25746829]
[1753756336473,0.15475,118030.0,118020.0,0.9240849]
[1753756336775,0.15475,118030.0,118020.0,1.25746829]
[1753756338575,0.15475,118030.0,118020.0,0.55722829]
[1753756338877,0.15475,118030.0,118020.0,1.25722829]
[1753756339072,0.15475,118030.0,118020.0,0.55722829]
[1753756339272,0.15475,118030.0,118020.0,1.25722829]
[1753756340574,0.15475,118030.0,118020.0,0.55722829]
[1753756340875,0.15475,118030.0,118020.0,1.25714829]
[1753756341775,0.15475,118030.0,118020.0,1.25710829]
[1753756342075,0.15475,118030.0,118020.0,0.55722829]
[1753756342274,0.15475,118030.0,118020.0,1.25706829]
[1753756342876,0.15475,118030.0,118020.0,1.20815628]
[1753756343476,0.15475,118030.0,118020.0,0.50831628]
[1753756343679,0.15475,118030.0,118020.0,1.20815628]
[1753756346072,0.60867198,118030.0,118020.0,0.8691849]
[1753756346583,0.60867198,118030.0,118020.0,0.1919849]
[1753756346774,0.3242006,118030.0,118020.0,0.1971649]
[1753756347174,0.15475,118030.0,118020.0,0.1971649]
[1753756347371,0.15475,118030.0,118020.0,0.2233349]
[1753756347572,0.15475,118030.0,118020.0,0.50780628]
[1753756349184,0.3242005,118030.0,118020.0,0.50780628]
[1753756350184,0.3242005,118030.0,118020.0,0.2233349]
[1753756350579,0.3242005,118030.0,118020.0,0.1971649]
[1753756350983,0.60867188,118030.0,118020.0,0.1694649]
[1753756352090,1.10867188,118030.0,118020.0,0.1694649]
[1753756352774,1.10867188,118030.0,118020.0,0.1727049]
[1753756352977,1.12867188,118030.0,118020.0,0.1694649]
[1753756357891,0.8442005,118030.0,118020.0,0.1694649]
[1753756358188,1.12867188,118030.0,118020.0,0.1694649]
[1753756359892,0.8442005,118030.0,118020.0,0.1694649]
[1753756360095,1.12867188,118030.0,118020.0,0.1919849]
[1753756361096,0.67475,118030.0,118020.0,0.1887449]
[1753756361388,0.8273005,118030.0,118020.0,0.50780628]
[1753756361587,0.8273005,118030.0,118020.0,0.2233349]
[1753756362189,0.15785,118030.0,118020.0,0.2233349]
[1753756362384,0.3273006,118030.0,118020.0,0.2233349]
[1753756362693,0.15785,118030.0,118020.0,0.2233349]
[1753756363290,0.3273006,118030.0,118020.0,0.2233349]
[1753756363690,0.15785,118030.0,118020.0,0.2233349]
[1753756364098,0.3273006,118030.0,118020.0,0.2233349]
[1753756365091,0.15785,118030.0,118020.0,0.2233349]
[1753756366096,0.15785,118030.0,118020.0,0.50780628]
[1753756366689,0.15785,118030.0,118020.0,0.50681628]
[1753756367998,0.3273005,118030.0,118020.0,0.50681628]
[1753756368403,0.3273005,118030.0,118020.0,0.1971649]
[1753756368591,0.61177188,118030.0,118020.0,0.1971649]
[1753756369202,0.61177188,118030.0,118020.0,0.1919849]
[1753756369898,0.3273005,118030.0,118020.0,0.1919849]
[1753756370199,0.3273005,118030.0,118020.0,0.1971649]
[1753756370594,0.3273005,118030.0,118020.0,0.2223449]
[1753756370795,0.61177188,118030.0,118020.0,0.1971649]
[1753756371093,0.61177188,118030.0,118020.0,0.1919849]